[Event "Titled Tuesday Blitz July 18 Early 2023"]
[White "Arencibia Monduy, Antonio"]
[Black "Fiorito, Joaquin"]
[WhiteFideId "3507939"]
[BlackFideId "180173"]
[WhiteElo "2550"]
[BlackElo "2702"]
[Result "1-0"]
[Round "11"]
[TimeControl "180+2"]
[Date "2023.07.18"]
[WhiteClock "0:01:20"]
[BlackClock "0:01:14"]
[Board "55"]

1. e4 {[%clk 0:03:00]}  c5 {[%clk 0:03:00]} 2. Nf3 {[%clk 0:03:00]}  d6 {[%clk 0:02:59]} 3. Bc4 {[%clk 0:03:00]}  e6 {[%clk 0:02:56]} 4. O-O {[%clk 0:03:00]}  Nf6 {[%clk 0:02:56]} 5. d3 {[%clk 0:02:59]}  Be7 {[%clk 0:02:56]} 6. Bb3 {[%clk 0:02:58]}  O-O {[%clk 0:02:56]} 7. c3 {[%clk 0:02:59]}  b6 {[%clk 0:02:56]} 8. Re1 {[%clk 0:02:59]}  Bb7 {[%clk 0:02:57]} 9. Nbd2 {[%clk 0:02:58]}  Nbd7 {[%clk 0:02:57]} 10. Nf1 {[%clk 0:02:58]}  a6 {[%clk 0:02:57]} 11. Ng3 {[%clk 0:02:58]}  b5 {[%clk 0:02:58]} 12. d4 {[%clk 0:02:58]}  cxd4 {[%clk 0:02:58]} 13. cxd4 {[%clk 0:02:58]}  Rc8 {[%clk 0:02:55]} 14. h3 {[%clk 0:02:53]}  Nb6 {[%clk 0:02:54]} 15. Bg5 {[%clk 0:02:42]}  Nc4 {[%clk 0:02:50]} 16. Qe2 {[%clk 0:02:42]}  Nd7 {[%clk 0:02:46]} 17. Bxe7 {[%clk 0:02:39]}  Qxe7 {[%clk 0:02:47]} 18. Rac1 {[%clk 0:02:40]}  Ndb6 {[%clk 0:02:47]} 19. Bxc4 {[%clk 0:02:07]}  Nxc4 {[%clk 0:02:43]} 20. b3 {[%clk 0:02:07]}  Nb6 {[%clk 0:02:44]} 21. Qd2 {[%clk 0:02:07]}  h6 {[%clk 0:02:37]} 22. Qa5 {[%clk 0:02:03]}  Na8 {[%clk 0:02:32]} 23. Qb4 {[%clk 0:02:02]}  Qd7 {[%clk 0:02:28]} 24. Qd2 {[%clk 0:01:43]}  Rc7 {[%clk 0:02:19]} 25. Rxc7 {[%clk 0:01:41]}  Qxc7 {[%clk 0:02:19]} 26. Rc1 {[%clk 0:01:41]}  Qd7 {[%clk 0:02:19]} 27. d5 {[%clk 0:01:37]}  exd5 {[%clk 0:02:16]} 28. exd5 {[%clk 0:01:37]}  Nc7 {[%clk 0:02:16]} 29. Nd4 {[%clk 0:01:30]}  Nxd5 {[%clk 0:02:13]} 30. Ndf5 {[%clk 0:01:30]}  Re8 {[%clk 0:02:10]} 31. Qd4 {[%clk 0:01:28]}  Re5 {[%clk 0:01:57]} 32. Qg4 {[%clk 0:01:19]}  g5 {[%clk 0:01:17]} 33. Nxh6+ {[%clk 0:01:19]}  Kg7 {[%clk 0:01:14]} 34. Qxd7 {[%clk 0:01:20]} 1-0


[Site "https://www.chess.com"]

[Event "Titled Tuesday Blitz July 18 Early 2023"]
[White "Aldokhin, Ivan"]
[Black "DCacheiro"]
[WhiteFideId "24115720"]
[WhiteElo "2662"]
[BlackElo "2542"]
[Result "1-0"]
[Round "11"]
[TimeControl "180+2"]
[Date "2023.07.18"]
[WhiteClock "0:00:31"]
[BlackClock "0:00:09"]
[Board "56"]

1. e4 {[%clk 0:03:00]}  e5 {[%clk 0:02:58]} 2. Nf3 {[%clk 0:03:01]}  Nc6 {[%clk 0:02:58]} 3. Bb5 {[%clk 0:03:02]}  a6 {[%clk 0:02:58]} 4. Ba4 {[%clk 0:03:02]}  Nf6 {[%clk 0:02:59]} 5. O-O {[%clk 0:03:03]}  Be7 {[%clk 0:02:59]} 6. Re1 {[%clk 0:03:03]}  b5 {[%clk 0:02:59]} 7. Bb3 {[%clk 0:03:03]}  O-O {[%clk 0:03:00]} 8. d4 {[%clk 0:03:04]}  Nxd4 {[%clk 0:03:00]} 9. Nxd4 {[%clk 0:03:04]}  exd4 {[%clk 0:03:00]} 10. e5 {[%clk 0:03:04]}  Ne8 {[%clk 0:03:00]} 11. c3 {[%clk 0:03:05]}  c5 {[%clk 0:03:01]} 12. cxd4 {[%clk 0:03:04]}  c4 {[%clk 0:03:01]} 13. Bc2 {[%clk 0:03:04]}  d5 {[%clk 0:03:02]} 14. Nd2 {[%clk 0:02:54]}  Nc7 {[%clk 0:03:01]} 15. Nf1 {[%clk 0:02:44]}  Ne6 {[%clk 0:02:56]} 16. Ng3 {[%clk 0:02:39]}  Qc7 {[%clk 0:02:43]} 17. Nf5 {[%clk 0:02:37]}  Bb4 {[%clk 0:02:41]} 18. Re3 {[%clk 0:02:34]}  g6 {[%clk 0:02:29]} 19. Rh3 {[%clk 0:02:02]}  Ng7 {[%clk 0:02:03]} 20. Nh6+ {[%clk 0:01:45]}  Kh8 {[%clk 0:02:03]} 21. Rc3 {[%clk 0:01:31]}  Be7 {[%clk 0:01:49]} 22. Qf3 {[%clk 0:01:29]}  Be6 {[%clk 0:01:19]} 23. Re3 {[%clk 0:01:25]}  b4 {[%clk 0:01:12]} 24. Bd2 {[%clk 0:01:24]}  a5 {[%clk 0:01:11]} 25. Ng4 {[%clk 0:01:21]}  Nf5 {[%clk 0:01:05]} 26. Bxf5 {[%clk 0:01:17]}  Bxf5 {[%clk 0:01:06]} 27. Nf6 {[%clk 0:01:12]}  Bxf6 {[%clk 0:00:57]} 28. exf6 {[%clk 0:01:12]}  Rae8 {[%clk 0:00:53]} 29. Rae1 {[%clk 0:01:07]}  Re4 {[%clk 0:00:50]} 30. Rxe4 {[%clk 0:01:04]}  Bxe4 {[%clk 0:00:51]} 31. Qh3 {[%clk 0:00:58]}  Qc6 {[%clk 0:00:34]} 32. f3 {[%clk 0:00:54]}  c3 {[%clk 0:00:29]} 33. bxc3 {[%clk 0:00:50]}  bxc3 {[%clk 0:00:29]} 34. Bh6 {[%clk 0:00:49]}  c2 {[%clk 0:00:18]} 35. fxe4 {[%clk 0:00:47]}  Rb8 {[%clk 0:00:17]} 36. exd5 {[%clk 0:00:34]}  Qxd5 {[%clk 0:00:15]} 37. Qe3 {[%clk 0:00:34]}  Qd7 {[%clk 0:00:11]} 38. Qe7 {[%clk 0:00:33]}  Qxe7 {[%clk 0:00:10]} 39. fxe7 {[%clk 0:00:33]}  Re8 {[%clk 0:00:09]} 40. d5 {[%clk 0:00:31]} 1-0


[Site "https://www.chess.com"]

[Event "Titled Tuesday Blitz July 18 Early 2023"]
[White "Goryachkina, Aleksandra"]
[Black "Sreyas Payyappat"]
[WhiteFideId "4147103"]
[BlackFideId "46674969"]
[WhiteElo "2642"]
[BlackElo "2523"]
[Result "1-0"]
[Round "11"]
[TimeControl "180+2"]
[Date "2023.07.18"]
[WhiteClock "0:00:18"]
[BlackClock "0:00:26"]
[Board "57"]

1. e4 {[%clk 0:02:59]}  c6 {[%clk 0:03:00]} 2. d4 {[%clk 0:02:58]}  d5 {[%clk 0:03:01]} 3. exd5 {[%clk 0:02:58]}  cxd5 {[%clk 0:03:01]} 4. Bd3 {[%clk 0:02:59]}  Nc6 {[%clk 0:03:02]} 5. c3 {[%clk 0:02:59]}  Qc7 {[%clk 0:03:02]} 6. h3 {[%clk 0:02:51]}  e5 {[%clk 0:02:59]} 7. dxe5 {[%clk 0:02:49]}  Nxe5 {[%clk 0:02:49]} 8. Bb5+ {[%clk 0:02:46]}  Bd7 {[%clk 0:02:48]} 9. Bxd7+ {[%clk 0:02:41]}  Qxd7 {[%clk 0:02:41]} 10. Nf3 {[%clk 0:02:40]}  Nxf3+ {[%clk 0:02:40]} 11. Qxf3 {[%clk 0:02:40]}  O-O-O {[%clk 0:02:39]} 12. O-O {[%clk 0:02:39]}  Bc5 {[%clk 0:02:38]} 13. Be3 {[%clk 0:02:37]}  Bxe3 {[%clk 0:02:37]} 14. Qxe3 {[%clk 0:02:37]}  b6 {[%clk 0:02:31]} 15. a4 {[%clk 0:02:34]}  Nf6 {[%clk 0:02:29]} 16. a5 {[%clk 0:02:31]}  Kb7 {[%clk 0:02:25]} 17. axb6 {[%clk 0:02:25]}  axb6 {[%clk 0:02:26]} 18. Nd2 {[%clk 0:02:24]}  Rhe8 {[%clk 0:02:15]} 19. Qd3 {[%clk 0:02:21]}  d4 {[%clk 0:02:05]} 20. Qa6+ {[%clk 0:02:17]}  Kc7 {[%clk 0:01:58]} 21. cxd4 {[%clk 0:02:15]}  Nd5 {[%clk 0:01:47]} 22. Rfc1+ {[%clk 0:01:53]}  Kd6 {[%clk 0:01:46]} 23. Nc4+ {[%clk 0:01:54]}  Ke7 {[%clk 0:01:45]} 24. Qa3+ {[%clk 0:01:35]}  Kf6 {[%clk 0:01:40]} 25. Ne5 {[%clk 0:01:35]}  Qf5 {[%clk 0:01:38]} 26. Rc6+ {[%clk 0:01:15]}  Re6 {[%clk 0:01:36]} 27. Rac1 {[%clk 0:01:13]}  Nf4 {[%clk 0:01:34]} 28. Qf3 {[%clk 0:00:55]}  Rxd4 {[%clk 0:01:22]} 29. Ng4+ {[%clk 0:00:46]}  Kg6 {[%clk 0:01:19]} 30. Ne3 {[%clk 0:00:44]}  Qg5 {[%clk 0:01:04]} 31. Rxe6+ {[%clk 0:00:29]}  Nxe6 {[%clk 0:01:04]} 32. Rc6 {[%clk 0:00:27]}  Rb4 {[%clk 0:00:44]} 33. Qe2 {[%clk 0:00:27]}  Qb5 {[%clk 0:00:36]} 34. Qc2+ {[%clk 0:00:23]}  Kf6 {[%clk 0:00:29]} 35. Qc3+ {[%clk 0:00:18]}  Ke7 {[%clk 0:00:26]} 36. Qxb4+ {[%clk 0:00:17]}  Qxb4 {[%clk 0:00:26]} 37. Nd5+ {[%clk 0:00:18]}  Kd7 {[%clk 0:00:26]} 38. Nxb4 {[%clk 0:00:18]} 1-0


[Site "https://www.chess.com"]

[Event "Titled Tuesday Blitz July 18 Early 2023"]
[White "Bilan, Danila"]
[Black "Ovchinnikov, Vsevolod"]
[WhiteFideId "24161918"]
[BlackFideId "24176842"]
[WhiteElo "2529"]
[BlackElo "2641"]
[Result "1-0"]
[Round "11"]
[TimeControl "180+2"]
[Date "2023.07.18"]
[WhiteClock "0:00:07"]
[BlackClock "0:00:06"]
[Board "58"]

1. d4 {[%clk 0:03:00]}  Nf6 {[%clk 0:02:59]} 2. Nf3 {[%clk 0:02:59]}  g6 {[%clk 0:03:00]} 3. Bg5 {[%clk 0:02:58]}  Bg7 {[%clk 0:03:00]} 4. c3 {[%clk 0:02:47]}  d6 {[%clk 0:03:00]} 5. Nbd2 {[%clk 0:02:47]}  h6 {[%clk 0:02:59]} 6. Bh4 {[%clk 0:02:47]}  g5 {[%clk 0:02:59]} 7. Bg3 {[%clk 0:02:46]}  Nh5 {[%clk 0:03:00]} 8. e4 {[%clk 0:02:44]}  Nd7 {[%clk 0:02:58]} 9. Bc4 {[%clk 0:02:20]}  e6 {[%clk 0:02:58]} 10. Qc2 {[%clk 0:02:05]}  a6 {[%clk 0:02:55]} 11. a4 {[%clk 0:02:04]}  b6 {[%clk 0:02:55]} 12. Nf1 {[%clk 0:01:55]}  Bb7 {[%clk 0:02:51]} 13. Ne3 {[%clk 0:01:55]}  Qe7 {[%clk 0:02:44]} 14. e5 {[%clk 0:01:45]}  Nxg3 {[%clk 0:01:47]} 15. exd6 {[%clk 0:01:35]}  Qxd6 {[%clk 0:01:41]} 16. hxg3 {[%clk 0:01:34]}  c5 {[%clk 0:01:42]} 17. O-O {[%clk 0:01:00]}  cxd4 {[%clk 0:00:59]} 18. cxd4 {[%clk 0:00:52]}  O-O {[%clk 0:00:55]} 19. d5 {[%clk 0:00:45]}  exd5 {[%clk 0:00:43]} 20. Rad1 {[%clk 0:00:41]}  Nf6 {[%clk 0:00:43]} 21. Bd3 {[%clk 0:00:13]}  Rfc8 {[%clk 0:00:30]} 22. Qd2 {[%clk 0:00:13]}  Re8 {[%clk 0:00:19]} 23. Nf5 {[%clk 0:00:14]}  Qd7 {[%clk 0:00:15]} 24. Nxg5 {[%clk 0:00:11]}  Ne4 {[%clk 0:00:07]} 25. Bxe4 {[%clk 0:00:10]}  Rxe4 {[%clk 0:00:04]} 26. Nxe4 {[%clk 0:00:07]}  Qxf5 {[%clk 0:00:05]} 27. Nd6 {[%clk 0:00:07]}  Qd7 {[%clk 0:00:05]} 28. Nxb7 {[%clk 0:00:08]}  Qxb7 {[%clk 0:00:06]} 29. Qxd5 {[%clk 0:00:08]}  Qb8 {[%clk 0:00:07]} 30. Rfe1 {[%clk 0:00:07]}  Qf8 {[%clk 0:00:08]} 31. b3 {[%clk 0:00:07]}  Rc8 {[%clk 0:00:08]} 32. Rc1 {[%clk 0:00:06]}  Rd8 {[%clk 0:00:08]} 33. Qb7 {[%clk 0:00:06]}  Bd4 {[%clk 0:00:07]} 34. Qxa6 {[%clk 0:00:06]}  Qd6 {[%clk 0:00:07]} 35. Qe2 {[%clk 0:00:06]}  Kg7 {[%clk 0:00:07]} 36. Qg4+ {[%clk 0:00:07]}  Kf8 {[%clk 0:00:07]} 37. Rc8 {[%clk 0:00:07]}  Qf6 {[%clk 0:00:06]} 38. Rxd8+ {[%clk 0:00:07]}  Qxd8 {[%clk 0:00:07]} 39. Rd1 {[%clk 0:00:06]}  Bxf2+ {[%clk 0:00:06]} 40. Kxf2 {[%clk 0:00:07]} 1-0


[Site "https://www.chess.com"]

[Event "Titled Tuesday Blitz July 18 Early 2023"]
[White "Estrada Nieto, Julian"]
[Black "Schwabeneder, Florian"]
[WhiteFideId "5101018"]
[BlackFideId "1626191"]
[WhiteElo "2516"]
[BlackElo "2622"]
[Result "0-1"]
[Round "11"]
[TimeControl "180+2"]
[Date "2023.07.18"]
[WhiteClock "0:00:06"]
[BlackClock "0:00:20"]
[Board "59"]

1. e4 {[%clk 0:03:00]}  a6 {[%clk 0:02:59]} 2. d4 {[%clk 0:03:00]}  c6 {[%clk 0:02:58]} 3. Nf3 {[%clk 0:02:59]}  d5 {[%clk 0:02:58]} 4. Nc3 {[%clk 0:02:53]}  Bg4 {[%clk 0:02:57]} 5. h3 {[%clk 0:02:53]}  Bh5 {[%clk 0:02:54]} 6. Bd3 {[%clk 0:02:42]}  e6 {[%clk 0:02:54]} 7. g4 {[%clk 0:02:32]}  Bg6 {[%clk 0:02:54]} 8. Ne5 {[%clk 0:02:32]}  Nf6 {[%clk 0:02:38]} 9. Nxg6 {[%clk 0:02:28]}  hxg6 {[%clk 0:02:38]} 10. g5 {[%clk 0:02:23]}  Nxe4 {[%clk 0:02:30]} 11. Nxe4 {[%clk 0:02:23]}  dxe4 {[%clk 0:02:31]} 12. Bxe4 {[%clk 0:02:24]}  Qb6 {[%clk 0:02:25]} 13. c3 {[%clk 0:02:16]}  Nd7 {[%clk 0:02:25]} 14. Qb3 {[%clk 0:02:16]}  Qc7 {[%clk 0:02:22]} 15. Be3 {[%clk 0:02:10]}  Bd6 {[%clk 0:02:21]} 16. O-O-O {[%clk 0:02:08]}  O-O-O {[%clk 0:02:21]} 17. Kb1 {[%clk 0:02:06]}  Rh4 {[%clk 0:02:18]} 18. Bg2 {[%clk 0:02:02]}  Bf4 {[%clk 0:02:14]} 19. c4 {[%clk 0:01:56]}  Bxe3 {[%clk 0:02:11]} 20. Qxe3 {[%clk 0:01:50]}  Qf4 {[%clk 0:02:09]} 21. Rhe1 {[%clk 0:01:40]}  Qxe3 {[%clk 0:02:06]} 22. Rxe3 {[%clk 0:01:39]}  Nb6 {[%clk 0:02:02]} 23. c5 {[%clk 0:01:28]}  Nd5 {[%clk 0:01:55]} 24. Bxd5 {[%clk 0:01:26]}  Rxd5 {[%clk 0:01:55]} 25. Rf3 {[%clk 0:01:24]}  Rf5 {[%clk 0:01:52]} 26. Rxf5 {[%clk 0:01:17]}  gxf5 {[%clk 0:01:53]} 27. Rd3 {[%clk 0:01:15]}  Rf4 {[%clk 0:01:39]} 28. g6 {[%clk 0:01:09]}  f6 {[%clk 0:01:36]} 29. Re3 {[%clk 0:01:00]}  Kd7 {[%clk 0:01:24]} 30. Rb3 {[%clk 0:00:59]}  Kc7 {[%clk 0:01:17]} 31. Re3 {[%clk 0:00:59]}  Rxd4 {[%clk 0:01:15]} 32. Rxe6 {[%clk 0:00:59]}  Kd7 {[%clk 0:01:16]} 33. Re3 {[%clk 0:00:57]}  f4 {[%clk 0:01:10]} 34. Rb3 {[%clk 0:00:56]}  Kc7 {[%clk 0:01:10]} 35. h4 {[%clk 0:00:49]}  Rd5 {[%clk 0:01:02]} 36. Rb4 {[%clk 0:00:41]}  Rxc5 {[%clk 0:01:00]} 37. Rxf4 {[%clk 0:00:41]}  Kd6 {[%clk 0:00:54]} 38. Rd4+ {[%clk 0:00:33]}  Ke6 {[%clk 0:00:53]} 39. Rd8 {[%clk 0:00:26]}  Rd5 {[%clk 0:00:38]} 40. Rg8 {[%clk 0:00:23]}  Rd7 {[%clk 0:00:35]} 41. h5 {[%clk 0:00:23]}  Kf5 {[%clk 0:00:32]} 42. Kc2 {[%clk 0:00:21]}  Kg5 {[%clk 0:00:32]} 43. Rh8 {[%clk 0:00:21]}  c5 {[%clk 0:00:27]} 44. a4 {[%clk 0:00:18]}  b5 {[%clk 0:00:25]} 45. a5 {[%clk 0:00:17]}  c4 {[%clk 0:00:25]} 46. Kc3 {[%clk 0:00:15]}  Rd3+ {[%clk 0:00:22]} 47. Kb4 {[%clk 0:00:15]}  Rb3+ {[%clk 0:00:22]} 48. Kc5 {[%clk 0:00:15]}  Rxb2 {[%clk 0:00:23]} 49. h6 {[%clk 0:00:15]}  Kxg6 {[%clk 0:00:20]} 50. hxg7 {[%clk 0:00:09]}  Kxg7 {[%clk 0:00:21]} 51. Ra8 {[%clk 0:00:09]}  c3 {[%clk 0:00:20]} 52. Ra7+ {[%clk 0:00:08]}  Kg6 {[%clk 0:00:20]} 53. Kb6 {[%clk 0:00:09]}  c2 {[%clk 0:00:17]} 54. Rc7 {[%clk 0:00:09]}  b4 {[%clk 0:00:18]} 55. Kxa6 {[%clk 0:00:08]}  b3 {[%clk 0:00:18]} 56. Kb7 {[%clk 0:00:07]}  Rb1 {[%clk 0:00:18]} 57. a6 {[%clk 0:00:07]}  c1=Q {[%clk 0:00:19]} 58. Rxc1 {[%clk 0:00:06]}  Rxc1 {[%clk 0:00:20]} 59. a7 {[%clk 0:00:07]}  Ra1 {[%clk 0:00:20]} 60. a8=Q {[%clk 0:00:08]}  Rxa8 {[%clk 0:00:20]} 61. Kxa8 {[%clk 0:00:06]}  b2 {[%clk 0:00:20]} 0-1


[Site "https://www.chess.com"]

[Event "Titled Tuesday Blitz July 18 Early 2023"]
[White "Sadykov, Ramil"]
[Black "Chitlange Sakshi"]
[WhiteFideId "24113590"]
[BlackFideId "35002899"]
[WhiteElo "2587"]
[BlackElo "2475"]
[Result "0-1"]
[Round "11"]
[TimeControl "180+2"]
[Date "2023.07.18"]
[WhiteClock "0:00:01"]
[BlackClock "0:01:13"]
[Board "63"]

1. e4 {[%clk 0:02:05]}  c6 {[%clk 0:02:59]} 2. d4 {[%clk 0:02:05]}  d5 {[%clk 0:02:59]} 3. Nc3 {[%clk 0:02:01]}  dxe4 {[%clk 0:02:59]} 4. Nxe4 {[%clk 0:02:02]}  Nf6 {[%clk 0:03:00]} 5. Nxf6+ {[%clk 0:02:02]}  exf6 {[%clk 0:03:01]} 6. c3 {[%clk 0:02:02]}  Bd6 {[%clk 0:03:01]} 7. Bd3 {[%clk 0:02:03]}  O-O {[%clk 0:03:02]} 8. Qc2 {[%clk 0:02:02]}  Re8+ {[%clk 0:03:02]} 9. Ne2 {[%clk 0:02:01]}  h5 {[%clk 0:03:03]} 10. Be3 {[%clk 0:02:01]}  Nd7 {[%clk 0:03:02]} 11. O-O-O {[%clk 0:01:55]}  Nf8 {[%clk 0:03:02]} 12. h3 {[%clk 0:01:55]}  Be6 {[%clk 0:03:01]} 13. Kb1 {[%clk 0:01:55]}  b5 {[%clk 0:02:55]} 14. g4 {[%clk 0:01:51]}  h4 {[%clk 0:02:55]} 15. Rhg1 {[%clk 0:01:50]}  Qd7 {[%clk 0:02:48]} 16. Nf4 {[%clk 0:01:42]}  Bxf4 {[%clk 0:02:48]} 17. Bxf4 {[%clk 0:01:43]}  a5 {[%clk 0:02:31]} 18. c4 {[%clk 0:00:48]}  Kh8 {[%clk 0:02:12]} 19. d5 {[%clk 0:00:40]}  cxd5 {[%clk 0:02:04]} 20. cxb5 {[%clk 0:00:40]}  Rac8 {[%clk 0:01:56]} 21. Qa4 {[%clk 0:00:39]}  d4 {[%clk 0:01:53]} 22. Qxa5 {[%clk 0:00:36]}  Ra8 {[%clk 0:01:49]} 23. Qb4 {[%clk 0:00:25]}  Bxa2+ {[%clk 0:01:48]} 24. Kc1 {[%clk 0:00:26]}  Rac8+ {[%clk 0:01:42]} 25. Kd2 {[%clk 0:00:26]}  Ne6 {[%clk 0:01:38]} 26. Qd6 {[%clk 0:00:22]}  Qb7 {[%clk 0:01:30]} 27. g5 {[%clk 0:00:14]}  Qf3 {[%clk 0:01:25]} 28. gxf6 {[%clk 0:00:06]}  Qxf2+ {[%clk 0:01:17]} 29. Be2 {[%clk 0:00:05]}  Nxf4 {[%clk 0:01:14]} 30. fxg7+ {[%clk 0:00:05]}  Kg8 {[%clk 0:01:14]} 31. Rg2 {[%clk 0:00:01]}  Rxe2# {[%clk 0:01:13]} 0-1


[Site "https://www.chess.com"]

[Event "Titled Tuesday Blitz July 18 Early 2023"]
[White "favesaul"]
[Black "Vovk, Orest"]
[BlackFideId "14113490"]
[WhiteElo "2451"]
[BlackElo "2574"]
[Result "1/2-1/2"]
[Round "11"]
[TimeControl "180+2"]
[Date "2023.07.18"]
[WhiteClock "0:00:05"]
[BlackClock "0:00:06"]
[Board "66"]

1. e4 {[%clk 0:03:00]}  g5 {[%clk 0:02:59]} 2. d4 {[%clk 0:03:00]}  g4 {[%clk 0:02:59]} 3. Qxg4 {[%clk 0:02:44]}  d5 {[%clk 0:02:57]} 4. Qe2 {[%clk 0:02:43]}  dxe4 {[%clk 0:02:57]} 5. Qxe4 {[%clk 0:02:43]}  Nf6 {[%clk 0:02:57]} 6. Qh4 {[%clk 0:02:44]}  Nc6 {[%clk 0:02:55]} 7. Nf3 {[%clk 0:02:39]}  Rg8 {[%clk 0:02:56]} 8. h3 {[%clk 0:02:37]}  Bf5 {[%clk 0:02:54]} 9. c3 {[%clk 0:02:32]}  Qd5 {[%clk 0:02:54]} 10. Be3 {[%clk 0:02:10]}  Bxb1 {[%clk 0:02:52]} 11. Rxb1 {[%clk 0:02:10]}  Qxa2 {[%clk 0:02:52]} 12. Bd3 {[%clk 0:02:08]}  Rxg2 {[%clk 0:02:48]} 13. Bf4 {[%clk 0:01:52]}  Qd5 {[%clk 0:02:42]} 14. Ke2 {[%clk 0:01:34]}  Ne4 {[%clk 0:02:29]} 15. Bxe4 {[%clk 0:01:11]}  Qxe4+ {[%clk 0:02:28]} 16. Be3 {[%clk 0:01:12]}  Qf5 {[%clk 0:01:48]} 17. Nd2 {[%clk 0:00:48]}  O-O-O {[%clk 0:01:41]} 18. b4 {[%clk 0:00:47]}  e5 {[%clk 0:01:38]} 19. d5 {[%clk 0:00:28]}  Be7 {[%clk 0:01:38]} 20. Qc4 {[%clk 0:00:27]}  Bg5 {[%clk 0:01:12]} 21. Qe4 {[%clk 0:00:10]}  Qxe4 {[%clk 0:01:03]} 22. Nxe4 {[%clk 0:00:11]}  Bxe3 {[%clk 0:01:01]} 23. dxc6 {[%clk 0:00:11]}  Bb6 {[%clk 0:00:56]} 24. cxb7+ {[%clk 0:00:11]}  Kxb7 {[%clk 0:00:53]} 25. Rhd1 {[%clk 0:00:08]}  Rxd1 {[%clk 0:00:52]} 26. Rxd1 {[%clk 0:00:09]}  f5 {[%clk 0:00:51]} 27. Nc5+ {[%clk 0:00:07]}  Bxc5 {[%clk 0:00:52]} 28. bxc5 {[%clk 0:00:08]}  Kc6 {[%clk 0:00:51]} 29. Kf3 {[%clk 0:00:07]}  Rg8 {[%clk 0:00:48]} 30. Ra1 {[%clk 0:00:07]}  Kxc5 {[%clk 0:00:43]} 31. Rxa7 {[%clk 0:00:07]}  Kd6 {[%clk 0:00:42]} 32. Ra6+ {[%clk 0:00:06]}  c6 {[%clk 0:00:42]} 33. Ra7 {[%clk 0:00:06]}  Rb8 {[%clk 0:00:42]} 34. Rxh7 {[%clk 0:00:05]}  Rb3 {[%clk 0:00:42]} 35. Rf7 {[%clk 0:00:03]}  Rxc3+ {[%clk 0:00:42]} 36. Kg2 {[%clk 0:00:03]}  Ke6 {[%clk 0:00:41]} 37. Rf8 {[%clk 0:00:03]}  e4 {[%clk 0:00:41]} 38. h4 {[%clk 0:00:04]}  Rc5 {[%clk 0:00:34]} 39. h5 {[%clk 0:00:03]}  Ke7 {[%clk 0:00:34]} 40. Rg8 {[%clk 0:00:02]}  f4 {[%clk 0:00:34]} 41. h6 {[%clk 0:00:02]}  Rh5 {[%clk 0:00:33]} 42. Rg6 {[%clk 0:00:02]}  Kd7 {[%clk 0:00:27]} 43. Kf1 {[%clk 0:00:02]}  f3 {[%clk 0:00:26]} 44. Ke1 {[%clk 0:00:02]}  c5 {[%clk 0:00:13]} 45. Kd2 {[%clk 0:00:02]}  c4 {[%clk 0:00:12]} 46. Rg4 {[%clk 0:00:02]}  Rxh6 {[%clk 0:00:05]} 47. Rxe4 {[%clk 0:00:02]}  Rd6+ {[%clk 0:00:06]} 48. Kc2 {[%clk 0:00:01]}  Rc6 {[%clk 0:00:05]} 49. Rf4 {[%clk 0:00:02]}  Kd6 {[%clk 0:00:05]} 50. Rxf3 {[%clk 0:00:02]}  Kc5 {[%clk 0:00:05]} 51. Re3 {[%clk 0:00:03]}  Kb4 {[%clk 0:00:06]} 52. f4 {[%clk 0:00:03]}  Rh6 {[%clk 0:00:05]} 53. Re2 {[%clk 0:00:02]}  Rh3 {[%clk 0:00:04]} 54. Rf2 {[%clk 0:00:03]}  Ra3 {[%clk 0:00:05]} 55. Kb2 {[%clk 0:00:02]}  c3+ {[%clk 0:00:04]} 56. Kb1 {[%clk 0:00:02]}  Kb3 {[%clk 0:00:04]} 57. Re2 {[%clk 0:00:02]}  Ra4 {[%clk 0:00:04]} 58. Re7 {[%clk 0:00:01]}  Rxf4 {[%clk 0:00:03]} 59. Rb7+ {[%clk 0:00:02]}  Kc4 {[%clk 0:00:04]} 60. Rc7+ {[%clk 0:00:01]}  Kd3 {[%clk 0:00:04]} 61. Rd7+ {[%clk 0:00:01]}  Ke3 {[%clk 0:00:05]} 62. Kc2 {[%clk 0:00:01]}  Rc4 {[%clk 0:00:04]} 63. Rd8 {[%clk 0:00:01]}  Ke2 {[%clk 0:00:04]} 64. Rd7 {[%clk 0:00:01]}  Rc8 {[%clk 0:00:04]} 65. Rd6 {[%clk 0:00:01]}  Kf3 {[%clk 0:00:04]} 66. Rd3+ {[%clk 0:00:01]}  Ke4 {[%clk 0:00:04]} 67. Rxc3 {[%clk 0:00:02]}  Rd8 {[%clk 0:00:05]} 68. Rb3 {[%clk 0:00:02]}  Rc8+ {[%clk 0:00:04]} 69. Rc3 {[%clk 0:00:03]}  Rh8 {[%clk 0:00:05]} 70. Kb3 {[%clk 0:00:03]}  Kd4 {[%clk 0:00:05]} 71. Rc4+ {[%clk 0:00:02]}  Kd5 {[%clk 0:00:06]} 72. Rc3 {[%clk 0:00:03]}  Rb8+ {[%clk 0:00:06]} 73. Kc2 {[%clk 0:00:03]}  Kd4 {[%clk 0:00:06]} 74. Rd3+ {[%clk 0:00:04]}  Ke4 {[%clk 0:00:07]} 75. Rc3 {[%clk 0:00:04]}  Rb7 {[%clk 0:00:07]} 76. Rc4+ {[%clk 0:00:04]}  Ke3 {[%clk 0:00:07]} 77. Rc3+ {[%clk 0:00:04]}  Ke2 {[%clk 0:00:07]} 78. Rc5 {[%clk 0:00:05]}  Re7 {[%clk 0:00:07]} 79. Kc3 {[%clk 0:00:04]}  Re4 {[%clk 0:00:07]} 80. Rc4 {[%clk 0:00:04]}  Rxc4+ {[%clk 0:00:06]} 81. Kxc4 {[%clk 0:00:05]} 1/2-1/2


[Site "https://www.chess.com"]